Cogmind - Beta 13 @@@ ROGUE MODE // 2024.04.03 @ 22:18:10 Player: Sixten Result: Self-destructed Performance ------------- Evolutions (1) 500 Regions Visited (3) 600 Robots Destroyed (26) 130 Value Destroyed (491) 491 Prototype IDs (0) 0 Alien Tech Used (0) 0 Bonus (0) 0 TOTAL SCORE: 1721 Bonus ------- None Cogmind --------- Core Integrity 192/400 Matter 279/300 Energy 100/100 System Corruption 0% Temperature Cool (5) Movement Core (700) Ox13 Location -9/Materials Parts ------- > --- POWER (1) -------- (None) > --- PROPULSION (4) --- (None) > --- UTILITY (2) ------ High-capacity Storage Unit > --- WEAPON (2) ------- (None) > --- INVENTORY (20) --- Light Ion Engine Light Ion Engine Light Treads Aluminum Leg Hover Unit Flight Unit Flight Unit Flight Unit Flight Unit Flight Unit Small Storage Unit Targeting Computer Power Shielding Assault Rifle Light Assault Rifle Light Assault Rifle Mining Laser Mining Claw Peak State ------------ > --- POWER ------------ Light Nuclear Core > --- PROPULSION ------- Aluminum Leg Aluminum Leg > --- UTILITY ---------- High-capacity Storage Unit Light Armor Plating > --- WEAPON ----------- Assault Rifle Mining Claw > --- INVENTORY -------- Light Ion Engine Light Ion Engine Light Treads Aluminum Leg Wheel Hover Unit Flight Unit Flight Unit Flight Unit Flight Unit Flight Unit Small Storage Unit Targeting Computer Power Shielding Assault Rifle Light Assault Rifle Light Assault Rifle Light Assault Rifle Light Assault Rifle Mining Laser [Rating: 11] Favorites ----------- Power Light Nuclear Core Engine Light Ion Engine Power Core Light Nuclear Core Propulsion Aluminum Leg Treads Light Treads Leg Aluminum Leg Wheel Wheel Utility High-capacity Storage Unit Storage High-capacity Storage Unit Protection Light Armor Plating Weapon Assault Rifle Ballistic Gun Assault Rifle Slashing Weapon Mining Claw Build | -11 -10 -10 -9 ------- Run | Yrd Mat Min Mat Slots Evolved 2 | . . . 2 Power . | . . . . Propulsion 2 | . . . 2 Utility . | . . . . Weapon . | . . . . Parts Attached 21 | 7 8 3 3 Power 3 | 1 1 1 . Engine 2 | 1 . 1 . Core 1 | . 1 . . Reactor . | . . . . Propulsion 8 | 3 2 . 3 Treads 2 | 2 . . . Leg 4 | . 2 . 2 Wheel 2 | 1 . . 1 Hover . | . . . . Flight . | . . . . Utility 4 | 1 3 . . Device . | . . . . Storage 2 | 1 1 . . Processor . | . . . . Hackware . | . . . . Protection 2 | . 2 . . Artifact . | . . . . Weapon 6 | 2 2 2 . Energy Gun . | . . . . Energy Cannon . | . . . . Ballistic Gun 5 | 2 1 2 . Ballistic Cannon . | . . . . Launcher . | . . . . Special Weapon . | . . . . Impact Weapon . | . . . . Slashing Weapon 1 | . 1 . . Piercing Weapon . | . . . . Special Melee Weapon . | . . . . Unidentified Prototypes . | . . . . Parts Lost 11 | . 2 2 7 Power 3 | . 1 1 1 Propulsion 5 | . 1 . 4 Utility 1 | . . . 1 Weapon 2 | . . 1 1 Highest Loss Streak 6 | . 2 2 6 To Critical Strikes . | . . . . Average Slot Usage (%) 98 | . 98 99 79 Engine 1 | . . 3 9 Core 11 | . 13 9 . Treads 1 | . 1 . . Leg 26 | . 26 28 27 Storage 14 | . 15 14 11 Protection 12 | . 11 14 4 Ballistic Gun 19 | . 20 18 16 Slashing Weapon 8 | . 7 9 . Naked Turns . | . . . . Heaviest Build 53 | 12 53 52 48 Greatest Support 40 | 40 40 20 10 Greatest Overweight (x) 13 | 3 2 2 13 Average Overweight (x) 1 | . 1 2 4 Largest Inventory Capacity 20 | 8 20 20 20 Average Capacity 19 | 7 19 20 20 Most Carried 20 | 2 18 20 19 Average Carried 14 | 1 12 19 18 Final Capacity 20 | 8 20 20 20 Final Carried 20 | 2 18 20 18 Class Distribution -------------------- 91% | Mutant 8% | Scavenger-Mutant Dominant Class ---------------- Mutant | -10/Materials Mutant | -10/Mines Scavenger-Mutant | -9/Materials Resources | -11 -10 -10 -9 ----------- Run | Yrd Mat Min Mat Matter Collected 581 | 197 302 82 . Remotely . | . . . . Salvage Created 664 | . 418 178 68 Parts 63 | . 43 15 5 Haulers Intercepted 1 | . 1 . . Recyclers Shooed 1 | . 1 . . Parts Field Recycled . | . . . . Retrieved Matter . | . . . . Parts Self-Destructed . | . . . . Prevented . | . . . . Kills | -11 -10 -10 -9 ------- Run | Yrd Mat Min Mat Combat Hostiles Destroyed 19 | . 12 5 2 Guns 19 | . 12 5 2 Classes Destroyed 6 | . 5 1 . Worker 2 | . . 2 . Builder 3 | . 3 . . Hauler 1 | . 1 . . Operator 1 | . 1 . . Swarmer 9 | . 6 3 . Grunt 10 | . 6 2 2 Best Kill Streak 4 | . 4 2 2 Combat Bots Only 3 | . 3 2 2 Max Kills in Single Turn 1 | . 1 1 1 Gunslinging . | . . . . Exploded . | . . . . Melee . | . . . . Uniques/NPCs Destroyed . | . . . . Combat | -11 -10 -10 -9 -------- Run | Yrd Mat Min Mat Hostile Shots Fired 170 | . 72 51 47 Missed 41 | . 16 12 13 Damage Taken 1645 | . 715 336 594 Core 414 | . 120 86 208 Absorbed by Shields . | . . . . Core Remaining (%) 58 | 100 . 17 . Volleys Fired 95 | . 59 23 13 Largest 2 | . 2 2 2 Hottest 40 | . 40 40 40 Shots Fired 158 | . 102 30 26 Gun 158 | . 102 30 26 Cannon . | . . . . Launcher . | . . . . Special . | . . . . Kinetic 158 | . 102 30 26 Thermal . | . . . . Explosive . | . . . . Electromagnetic . | . . . . Robot Hit Streak 14 | . 14 7 6 Robot Miss Streak 6 | . 6 5 2 Penetration Max . | . . . . Secondary Targets 1 | . 1 . . Max Gunslinging Chain 1 | . 1 . . Shots Hit Robots 102 | . 67 18 17 Core Hits 41 | . 27 9 5 Critical Kills . | . . . . Critical Parts Destroyed . | . . . . Critical Strikes . | . . . . Melee Attacks 10 | . 8 2 . Impact . | . . . . Slashing 10 | . 8 2 . Piercing . | . . . . Sneak Attacks 6 | . 4 2 . Combat Hostiles . | . . . . Follow-up Attacks . | . . . . Damage Inflicted 1233 | . 781 300 152 Guns 950 | . 594 204 152 Cannons . | . . . . Explosions . | . . . . Melee 282 | . 186 96 . Ramming 1 | . 1 . . Kinetic 950 | . 594 204 152 Thermal . | . . . . Explosive . | . . . . Electromagnetic . | . . . . Impact . | . . . . Slashing 282 | . 186 96 . Piercing . | . . . . Highest Corruption . | . . . . Average Corruption . | . . . . Corruption Purged . | . . . . Corruption Blocked . | . . . . Overload Shots . | . . . . Overflow Damage 26 | . 26 . . Projectiles . | . . . . Explosions . | . . . . Melee 26 | . 26 . . Knockbacks . | . . . . Impact . | . . . . Kinetic . | . . . . Secondary . | . . . . Self-Inflicted Damage . | . . . . Shots . | . . . . Rammed 1 | . 1 . . Targets Rammed 3 | . 3 . . Kicked 2 | . 2 . . Crushed . | . . . . Highest Temperature 15 | . 15 10 6 Average Temperature 5 | . 5 4 5 Received Heat Transfer 483 | . 249 45 189 Siege Activations . | . . . . Robots Corrupted . | . . . . Combat Hostiles . | . . . . Parts Fried . | . . . . Impact Corruptions . | . . . . Robots Melted . | . . . . Combat Hostiles . | . . . . Parts Melted . | . . . . Heat Transferred . | . . . . Parts Sabotaged . | . . . . Parts Stolen . | . . . . Parts Stripped . | . . . . Power Chain Reactions . | . . . . Alert | -11 -10 -10 -9 ------- Run | Yrd Mat Min Mat Peak Influence 135 | . 135 65 70 Initial 17 | . . 17 . Average 28 | . 29 28 33 Maximum Alert Level . | . . . . Low Security (%) 100 | 100 100 100 100 Level 1 . | . . . . Level 2 . | . . . . Level 3 . | . . . . Level 4 . | . . . . Level 5 . | . . . . High Security . | . . . . Max Security . | . . . . Squads Dispatched 2 | . 1 . 1 Investigation . | . . . . Extermination . | . . . . Reinforcement 2 | . 1 . 1 Assault . | . . . . Garrison . | . . . . Intercept . | . . . . Searches Triggered . | . . . . Construction Impeded . | . . . . Haulers Reinforced . | . . . . Active Scanning Responses . | . . . . Cargo Convoy Interrupts . | . . . . Stealth | -11 -10 -10 -9 --------- Run | Yrd Mat Min Mat Distress Signals 1 | . 1 . . Communications Jammed . | . . . . Distress Signals . | . . . . Times Spotted 54 | . 41 6 7 Peak Tracking Total 6 | . 6 3 4 Tactical Retreats 1 | . . 1 . Traps | -11 -10 -10 -9 ------- Run | Yrd Mat Min Mat Traps Triggered 1 | . 1 . . Indirectly . | . . . . Trap Hack Attempts . | . . . . Triggered . | . . . . Disarmed . | . . . . Reprogrammed . | . . . . Reused . | . . . . Traps Extracted . | . . . . Installed . | . . . . Triggered . | . . . . Machines | -11 -10 -10 -9 ---------- Run | Yrd Mat Min Mat Machines Disabled . | . . . . Max in Single Turn . | . . . . Machines Repaired . | . . . . Machines Dismantled . | . . . . Machines Sabotaged . | . . . . Overloaded Fab Kills . | . . . . Hacking | -11 -10 -10 -9 --------- Run | Yrd Mat Min Mat Machines Accessed . | . . . . Terminals . | . . . . Fabricators . | . . . . Repair Stations . | . . . . Recycling Units . | . . . . Scanalyzers . | . . . . Garrison Access . | . . . . Total Hacks . | . . . . Successful . | . . . . Failed . | . . . . Catastrophic . | . . . . Database Lockouts . | . . . . Manual . | . . . . Terminals . | . . . . Fabricators . | . . . . Repair Stations . | . . . . Recycling Units . | . . . . Scanalyzers . | . . . . Garrison Access . | . . . . Terminal Hacks . | . . . . Fabricator Hacks . | . . . . Repair Station Hacks . | . . . . Recycling Unit Hacks . | . . . . Scanalyzer . | . . . . Garrison Access Hacks . | . . . . Unauthorized Hacks . | . . . . Terminals . | . . . . Fabricators . | . . . . Repair Stations . | . . . . Recycling Units . | . . . . Scanalyzers . | . . . . Garrison Access . | . . . . Data Cores Recovered . | . . . . Used . | . . . . Hacking Detections . | . . . . Full Trace Events . | . . . . Feedback Events . | . . . . Feedback Blocked . | . . . . Robot Schematics Acquired . | . . . . Robots Built . | . . . . Authchips . | . . . . Time . | . . . . Total Robot Build Rating . | . . . . Part Schematics Acquired . | . . . . Parts Built . | . . . . Authchips . | . . . . Time . | . . . . Total Part Build Rating . | . . . . Parts Repaired . | . . . . Time . | . . . . Parts Recycled . | . . . . Recycled Matter . | . . . . Retrieved Matter . | . . . . Retrieved Components . | . . . . Parts Scanalyzed . | . . . . Part Schematics Acquired . | . . . . Parts Damaged . | . . . . Bothacking | -11 -10 -10 -9 ------------ Run | Yrd Mat Min Mat Used RIF Installer . | . . . . Robots Hacked . | . . . . Non-combat . | . . . . Combat . | . . . . Robot Hacks Applied . | . . . . Relay Couplers Released . | . . . . Fabnet Peak Effective % . | . . . . Robots Rewired . | . . . . Allies Hacked . | . . . . Hacks Repelled . | . . . . Allies | -11 -10 -10 -9 -------- Run | Yrd Mat Min Mat Total Allies . | . . . . Largest Group . | . . . . Highest-Rated Group . | . . . . Highest-Rated Ally . | . . . . Total Orders . | . . . . Ally Attacks . | . . . . Total Damage . | . . . . Kills . | . . . . Allies Corrupted . | . . . . Allies Melted . | . . . . Intel | -11 -10 -10 -9 ------- Run | Yrd Mat Min Mat Robot Analysis Total . | . . . . Derelict Logs Recovered 2 | . . 2 . Drone Launches . | . . . . Drone Recoveries . | . . . . Exploration | -11 -10 -10 -9 ------------- Run | Yrd Mat Min Mat Turns Passed 6371 | 116 4324 1800 131 Spaces Moved 2389 | 70 1629 667 23 Core 19 | 18 . . 1 Treads 159 | 51 108 . . Legs 2210 | . 1521 667 22 Wheels 1 | 1 . . . Hover . | . . . . Flight . | . . . . Fastest Speed 50 | 50 120 260 330 Average Speed 252 | 150 251 260 403 Slowest Speed 700 | 200 260 260 700 Overloaded Moves . | . . . . Propulsion Burnouts . | . . . . Robots Hopped . | . . . . Cave-ins Triggered . | . . . . Exploration Rate (%) 49 | 4 96 94 3 Regions Visited 3 Branch Regions 1 Pre-discovered Areas . | . . . . Known Exits Taken . | . . . . Unknown Exits Taken 3 | 1 1 1 . Scrap Searched 3 | . . 3 . Spaces Dug 2 | . 2 . . Terrain Destroyed 2 | . 2 . . Melee 2 | . 2 . . Projectile . | . . . . AOE . | . . . . Terrain Rammed . | . . . . Walls Destroyed . | . . . . Machines Disabled . | . . . . Actions | -11 -10 -10 -9 --------- Run | Yrd Mat Min Mat Total 2565 | 78 1745 703 39 Wait 26 | . 22 4 . Move 2386 | 69 1628 666 23 Hop . | . . . . Pick Up 21 | 1 16 4 . Fast Attach 10 | 7 2 1 . Attach 5 | . 2 1 2 Detach 2 | 1 1 . . Swap 6 | . 4 1 1 Drop 1 | . . 1 . Fire 95 | . 59 23 13 Melee 10 | . 8 2 . Ram . | . . . . Kick 2 | . 2 . . Crush 1 | . 1 . . Escape Stasis . | . . . . Rewire . | . . . . Trap . | . . . . Miscellaneous . | . . . . Route ------- -11/Scrapyard -10/Materials (discovered 4 exits: [*Mat x3] / [*Min]) -10/Mines -9/Materials (discovered 2 exits: *Sto x2) History --------- Turn | Location | Event 22 | -11/Scrapyard | Discovered new exit (range 16) 117 | -11/Scrapyard | Entered Materials 308 | -10/Materials | Build established: Mutant 501 | -10/Materials | Discovered new exit (range 11) 2261 | -10/Materials | Discovered new exit (range 15) 2570 | -10/Materials | Discovered new exit (range 16) 3011 | -10/Materials | Discovered new exit (range 6) 4441 | -10/Materials | Entered Mines 4696 | -10/Mines | Found a hidden stash of uninstalled traps 4943 | -10/Mines | Core integrity fell below 50% 5120 | -10/Mines | Learned Materials stockpile data 5472 | -10/Mines | Discovered new exit (range 10) 5716 | -10/Mines | Core integrity fell below 20% 6083 | -10/Mines | Build established: Scavenger-Mutant 6241 | -10/Mines | Entered Materials 6241 | -9/Materials | Evolved 2 slots: Propulsion x2 6242 | -9/Materials | Identified exit to Storage 6324 | -9/Materials | Discovered exit to Storage (range 16) 6372 | -9/Materials | Core integrity fell below 50% 6372 | -9/Materials | Self-destructed Last Messages --------------- 06324_ EXIT=FOUND: STORAGE 06325_ Critical hit (Burn: +37). 06326_ R-06 Scavenger collects Sml. Laser. 06328_ K-01 Serf collects debris. 06329_ R-06 Scavenger collects Aluminum Leg. 06331_ K-01 Serf collects debris. 06335_ Aluminum Leg destroyed. 06335_ R-06 Scavenger collects Aluminum Leg. 06338_ Critical hit (Burn: +37). 06338_ Lgt. Assault Rifle destroyed. 06338_ K-01 Serf collects debris. 06339_ R-06 Scavenger collects Heat Sink. 06342_ K-01 Serf collects debris. 06350_ Lgt. Assault Rifle severed. 06350_ K-01 Serf collects debris. 06353_ Lgt. Ion Engine destroyed. 06355_ K-01 Serf collects debris. 06361_ Wheel destroyed. 06363_ Aluminum Leg destroyed. 06371_ Critical hit (Burn: +37). Map ----- +----------------------------------------------------+ | ?????????????????????????????????????????????????? | | ?????????????????????????????????????????????????? | | ?????????????????????????????????????????????????? | | ?????????????????????????????????????????????????? | | ?????????????????????????????????????????????????? | | ?????????????????????????????????????????????????? | | ?????????????????????????????????????????????????? | | ?????????????????????????????????????????????????? | | ?????????????????????????????????????????????????? | | ?????????????????????????????????????????????????? | | ?????????????????????????????????????????????????? | | ????????????????????????######???????????????????? | | ???????????????????????? #???????????????????? | | ???????????????????????? #???????????????????? | | ???????????????????????? +???????????????????? | | ???????????????????????? ????????????????????? | | ???????????????????????? ????????????????????? | | ????????????????????????# #????????????????????? | | ?????????????#??????????# #????????????????????? | | ?????????????+ ?????????# #????????????????????? | | ?????????????# ????????# #????????????????????? | | ?????????????# ???????# #????????????????????? | | ????????????## #??????# #????????????????????? | | ???????###### ! ####### #?????? #???????????? | | ??? Y%] [ # #???????????? | | ???> T l@ w #???????????? | | ??? % g # """ #???????????? | | ??????####### ####### #?? """??????????????? | | ????????????###+##??????# #?????"??????????????? | | ????????????? ?????????# #????????????????????? | | ??????????? ??????????# #????????????????????? | | ??????????# ????????????#####????????????????????? | | ??????????#??????????????????????????????????????? | | ?????????????????????????????????????????????????? | | ?????????????????????????????????????????????????? | | ?????????????????????????????????????????????????? | | ?????????????????????????????????????????????????? | | ?????????????????????????????????????????????????? | | ?????????????????????????????????????????????????? | | ?????????????????????????????????????????????????? | | ?????????????????????????????????????????????????? | | ?????????????????????????????????????????????????? | | | | | | | | | | | | | | | | | +----------------------------------------------------+ Best States ------------- Heat Dissipation 28 Energy Generation 14 Energy Capacity 250 Matter Stores 300 Matter Capacity 300 Sight Range 16 Terrain Scan Density 10 Armor Coverage 150 Power Shielding 33 Evasion (%) 55 Recoil Reduction 2 Item Schematics ----------------- None Robot Schematics ------------------ None Fabricated ------------ Nothing Alien Tech Used ----------------- None Achievements -------------- None Challenges ------------ None Game ------ Seed PowerMolecularMultirail Manual? 0 Play Time 00:16:03 Cumulative 10.8 hours Start 2024.04.03 @ 19:34:00 End 2024.04.03 @ 22:18:10 Sessions 2 Manual Loads 0 Difficulty Rogue Special Mode None Game No. 48 Rogue 48 Adventurer 0 Explorer 0 Win Type - Total 0 Types 0/0/0/0/0/0/0/0/0 Lore% 9 Gallery% 14 Achievement% 14 Wizard Run 0 Options --------- Layout 1 ASCII 0 Keyboard 0 Movement Arrows Keybinds 0 Fullscreen 1 Font 24/Smallcaps Map View 50x35 Zoom Use 0% Tactical HUD 1 Map Filters NONE Filters NONE Steam 1 RUN: 30e5a844-a0c7-4aa4-84b0-56d300fb1730